bitfinex-derivatives/quotes_BTCF0:USTF0_20230901
["timestamp","ask_amount","ask_price","bid_price","bid_amount"]
[1693553096603,0.4228,25993.0,25992.0,0.80284753]
[1693553097006,0.4228,25993.0,25992.0,0.82284753]
[1693553098296,0.728,25996.0,25992.0,1.11586082]
[1693553098510,0.728,25996.0,25995.0,0.4158]
[1693553098806,0.4158,25996.0,25995.0,0.4158]
[1693553099102,0.4158,25996.0,25995.0,0.62804838]
[1693553099301,0.4188,25996.0,25995.0,0.62804838]
[1693553099905,0.4228,25996.0,25995.0,0.62804838]
[1693553100608,0.4228,25996.0,25995.0,0.65504838]
[1693553100809,0.4198,25996.0,25995.0,0.65504838]
[1693553101108,0.4238,25996.0,25995.0,0.69004838]
[1693553102605,0.5834,25996.0,25995.0,0.69004838]
[1693553105809,0.008,25996.0,25995.0,0.71004838]
[1693553111110,0.008,25996.0,25995.0,0.69004838]
[1693553111311,0.008,25996.0,25995.0,0.71004838]
[1693553111516,0.008,25996.0,25995.0,0.69004838]
[1693553119120,0.00385,25998.0,25997.0,0.3]
[1693553119316,0.03145885,26000.0,25997.0,0.77234838]
[1693553119518,0.4158,26001.0,25999.0,0.4158]
[1693553119722,0.4158,26001.0,26000.0,0.4158]
[1693553120519,0.4158,26001.0,26000.0,0.47234838]
[1693553121218,0.4218,26001.0,26000.0,0.47334838]
[1693553121420,0.45317427,26001.0,26000.0,0.47334838]
[1693553121916,0.45817427,26001.0,26000.0,0.47434838]
[1693553126618,0.04237427,26001.0,26000.0,0.47434838]
[1693553127021,0.45817427,26001.0,26000.0,0.47434838]
[1693553128417,0.011,26001.0,26000.0,0.47434838]
[1693553162453,0.011,26001.0,26000.0,0.55119153]
[1693553171349,0.011,26001.0,26000.0,0.47434838]
[1693553171658,0.011,26001.0,26000.0,0.58954813]
[1693553171854,0.011,26001.0,26000.0,0.47434838]
[1693553172052,0.011,26001.0,26000.0,0.58954813]
[1693553211072,0.06754764,26001.0,26000.0,0.53299975]
[1693553211272,0.06754764,26001.0,26000.0,0.53321139]
[1693553211771,0.06754764,26001.0,26000.0,0.4178]
[1693553212873,0.011,26001.0,26000.0,0.47434838]
[1693553216776,0.011,26001.0,26000.0,0.58976634]
[1693553217976,0.011,26001.0,26000.0,0.58976816]
[1693553220267,0.011,26001.0,26000.0,0.47434838]
[1693553226685,0.011,26001.0,26000.0,0.62824142]
[1693553227786,0.011,26001.0,26000.0,0.47434838]
[1693553232790,0.011,26001.0,26000.0,0.62824142]
[1693553233189,0.011,26001.0,26000.0,0.88279478]
[1693553238999,0.011,26001.0,26000.0,0.62824142]
[1693553239695,0.006,26001.0,26000.0,0.63524142]
[1693553240804,0.001,26001.0,26000.0,0.63424142]
[1693553241103,0.002,26001.0,26000.0,0.64324142]
[1693553241599,0.03127877,26003.0,26000.0,1.04389869]
[1693553241799,0.1922182,26005.0,26003.0,0.3]
[1693553241996,0.5047182,26006.0,26004.0,0.49271265]
[1693553242196,0.5247182,26006.0,26005.0,0.4158]
[1693553242597,0.5247182,26006.0,26005.0,0.47234838]
[1693553243298,0.9775182,26006.0,26005.0,0.47534838]
[1693553244106,1.03406584,26006.0,26005.0,0.4188]
[1693553244307,1.07006584,26006.0,26005.0,0.4218]
[1693553245108,1.03406584,26006.0,26005.0,0.4188]
[1693553245308,1.02806584,26006.0,26005.0,0.4188]
[1693553245512,1.0075182,26006.0,26005.0,0.4228]
[1693553245895,0.9715182,26006.0,26005.0,0.4218]
[1693553246100,1.0035182,26006.0,26005.0,0.4218]
[1693553246897,0.5877182,26006.0,26005.0,0.4218]
[1693553247412,0.5877182,26006.0,26005.0,0.47834838]
[1693553249313,0.5677182,26006.0,26005.0,0.47834838]
[1693553249512,0.5877182,26006.0,26005.0,0.47834838]
[1693553249810,0.3755,26006.0,26005.0,0.47834838]
[1693553250709,0.39466149,26006.0,26005.0,0.47834838]
[1693553271329,0.45120913,26006.0,26005.0,0.4218]
[1693553278633,0.45120913,26006.0,26005.0,0.47834838]
[1693553279733,0.39466149,26006.0,26005.0,0.47834838]
[1693553283133,0.39466149,26006.0,26005.0,0.55520733]
[1693553283534,0.44935056,26006.0,26005.0,0.49865895]
[1693553283935,0.45120913,26006.0,26005.0,0.49865895]
[1693553284537,0.45120913,26006.0,26005.0,0.55520733]
[1693553286434,0.45120913,26006.0,26005.0,0.49865895]
[1693553286938,0.86700913,26006.0,26005.0,0.49865895]
[1693553290032,0.81046149,26006.0,26005.0,0.49865895]
[1693553291030,0.86700913,26006.0,26005.0,0.49865895]
[1693553293240,0.9216982,26006.0,26005.0,0.49865895]
[1693553293440,0.86700913,26006.0,26005.0,0.49865895]
[1693553295242,0.9216982,26006.0,26005.0,0.49865895]
[1693553295941,1.11370059,26006.0,26005.0,0.49865895]
[1693553296942,0.69790059,26006.0,26005.0,0.49865895]
[1693553297145,0.5058982,26006.0,26005.0,0.49865895]
[1693553297839,0.45120913,26006.0,26005.0,0.49865895]
[1693553298036,0.5058982,26006.0,26005.0,0.49865895]
[1693553298241,0.45120913,26006.0,26005.0,0.49865895]
[1693553298642,0.64321152,26006.0,26005.0,0.49865895]
[1693553299145,0.5058982,26006.0,26005.0,0.49865895]
[1693553299844,0.5058982,26006.0,26005.0,0.4218]
[1693553300047,0.45120913,26006.0,26005.0,0.53708842]
[1693553300439,0.5058982,26006.0,26005.0,0.53708842]
[1693553301743,0.45120913,26006.0,26005.0,0.53708842]
[1693553302144,0.39466149,26006.0,26005.0,0.5936368]
[1693553304748,0.39466149,26006.0,26005.0,0.53708842]
[1693553305250,0.5058982,26006.0,26005.0,0.53708842]
[1693553305443,0.45120913,26006.0,26005.0,0.53708842]
[1693553308450,0.45120913,26006.0,26005.0,0.5936368]
[1693553308752,0.39466149,26006.0,26005.0,0.5936368]
[1693553309453,0.45120913,26006.0,26005.0,0.53708842]
[1693553318063,0.5058982,26006.0,26005.0,0.53708842]
[1693553318365,0.45120913,26006.0,26005.0,0.53708842]
[1693553322777,0.5058982,26006.0,26005.0,0.53708842]
[1693553322978,2.2158,26005.0,26003.0,0.07693142]
[1693553323179,2.2158,26005.0,26002.0,0.07693142]
[1693553323180,0.47234764,26004.0,26002.0,0.07693142]
[1693553323477,0.66263199,26003.0,26001.0,0.01139494]
[1693553323774,0.47234764,26002.0,26001.0,0.01139494]
[1693553323977,0.52703671,26002.0,26001.0,0.01139494]
[1693553324276,0.54703671,26002.0,26001.0,0.01139494]
[1693553324768,0.54703671,26002.0,25998.0,0.5695179]
[1693553325075,0.41965,25999.0,25998.0,0.5695179]
[1693553325280,0.41965,25999.0,25998.0,0.82409183]
[1693553325479,0.47619764,25999.0,25998.0,0.5695179]
[1693553325869,0.47619764,25999.0,25998.0,0.4158]
[1693553326074,0.47619764,25999.0,25998.0,0.4168]
[1693553326575,0.53088671,25999.0,25998.0,0.4168]
[1693553326974,0.53488671,25999.0,25998.0,0.01]
[1693553329780,0.53888671,25999.0,25998.0,0.01]
[1693553336987,0.56988313,25999.0,25998.0,0.01]
[1693553340086,0.58904462,25999.0,25998.0,0.01]
[1693553341885,0.58519462,25999.0,25998.0,0.01]
[1693553342386,0.53050555,25999.0,25998.0,0.01]
[1693553342688,0.58519462,25999.0,25998.0,0.01]
[1693553347891,0.53050555,25999.0,25998.0,0.01]
[1693553348693,0.58519462,25999.0,25998.0,0.01]
[1693553350096,0.58904462,25999.0,25998.0,0.01]
[1693553368324,0.58904462,25999.0,25998.0,0.1637179]
[1693553368721,0.58904462,25999.0,25998.0,0.01]
[1693553368921,0.58904462,25999.0,25998.0,0.1637179]
[1693553369325,0.58904462,25999.0,25998.0,0.01]
[1693553374033,0.58519462,25999.0,25998.0,0.01]
[1693553374226,0.53050555,25999.0,25998.0,0.01]
[1693553374626,0.58519462,25999.0,25998.0,0.01]
[1693553382840,0.60519462,25999.0,25998.0,0.01]
[1693553393239,0.58519462,25999.0,25998.0,0.01]
[1693553393636,1.18519462,25999.0,25998.0,0.01]
[1693553395347,1.18904462,25999.0,25998.0,0.01]
[1693553400552,1.24821066,25999.0,25998.0,0.01]
[1693553402357,1.18519462,25999.0,25998.0,0.01]
[1693553404953,1.07395791,25999.0,25998.0,0.08654838]
[1693553405861,1.07395791,25999.0,25998.0,0.06654838]
[1693553406160,1.07395791,25999.0,25998.0,0.03]
[1693553406358,1.13050555,25999.0,25998.0,0.03]
[1693553410663,1.18519462,25999.0,25998.0,0.03]
[1693553411258,1.18519462,25999.0,25998.0,0.01]
[1693553425888,1.07395791,25999.0,25998.0,0.01]
[1693553426288,1.07395791,25999.0,25998.0,0.12534444]
[1693553427391,1.12864698,25999.0,25998.0,0.12534444]
[1693553427582,1.18519462,25999.0,25998.0,0.12534444]
[1693553427889,1.13050555,25999.0,25998.0,0.12534444]
[1693553428084,1.18519462,25999.0,25998.0,0.12534444]
[1693553428481,1.13050555,25999.0,25998.0,0.12534444]
[1693553428682,1.18519462,25999.0,25998.0,0.12534444]
[1693553429692,1.13050555,25999.0,25998.0,0.12534444]
[1693553430391,1.18519462,25999.0,25998.0,0.12534444]
[1693553430792,1.13050555,25999.0,25998.0,0.12534444]
[1693553431183,1.18519462,25999.0,25998.0,0.12534444]
[1693553431388,1.13050555,25999.0,25998.0,0.12534444]
[1693553432989,1.18519462,25999.0,25998.0,0.12534444]
[1693553433381,1.13050555,25999.0,25998.0,0.12534444]
[1693553436390,1.18519462,25999.0,25998.0,0.12534444]
[1693553436590,1.13050555,25999.0,25998.0,0.12534444]
[1693553436991,1.18519462,25999.0,25998.0,0.12534444]
[1693553437390,1.13050555,25999.0,25998.0,0.12534444]
[1693553441088,1.07395791,25999.0,25998.0,0.12534444]
[1693553441894,1.13050555,25999.0,25998.0,0.12534444]
[1693553444588,1.07395791,25999.0,25998.0,0.12534444]
[1693553446593,1.13050555,25999.0,25998.0,0.12534444]
[1693553449899,1.07395791,25999.0,25998.0,0.18189282]
[1693553450100,1.13050555,25999.0,25998.0,0.18189282]
[1693553450290,1.13050555,25999.0,25998.0,0.12534444]
[1693553456209,1.07395791,25999.0,25998.0,0.12534444]
[1693553456507,1.13050555,25999.0,25998.0,0.12534444]
[1693553457501,1.28180555,25999.0,25998.0,0.12534444]
[1693553457701,1.33649462,25999.0,25998.0,0.12534444]
[1693553458512,1.28180555,25999.0,25998.0,0.12534444]
[1693553458707,1.33649462,25999.0,25998.0,0.12534444]
[1693553459514,1.28180555,25999.0,25998.0,0.12534444]
[1693553459810,1.33649462,25999.0,25998.0,0.12534444]
[1693553467107,1.34034462,25999.0,25998.0,0.12534444]
[1693553470916,1.34034462,25999.0,25998.0,0.08695628]
[1693553473315,1.36034462,25999.0,25998.0,0.08695628]
[1693553479309,1.22910791,25999.0,25998.0,0.14350466]
[1693553480023,1.28379698,25999.0,25998.0,0.14350466]
[1693553480411,1.28379698,25999.0,25998.0,0.08695628]
[1693553480817,1.34034462,25999.0,25998.0,0.08695628]
[1693553481324,1.34034462,25999.0,25998.0,0.01]
[1693553482424,1.34034462,25999.0,25998.0,0.12534444]
[1693553484525,1.28565555,25999.0,25998.0,0.12534444]
[1693553484725,1.34034462,25999.0,25998.0,0.12534444]
[1693553487126,1.28180555,25999.0,25998.0,0.12534444]
[1693553487625,1.33649462,25999.0,25998.0,0.12534444]
[1693553488430,0.47395791,25999.0,25998.0,0.18189282]
[1693553489726,0.53050555,25999.0,25998.0,0.12534444]
[1693553490230,0.58519462,25999.0,25998.0,0.12534444]
[1693553492132,0.53050555,25999.0,25998.0,0.12534444]
[1693553494529,0.47395791,25999.0,25998.0,0.12534444]
[1693553495421,0.52864698,25999.0,25998.0,0.12534444]
[1693553495621,0.58519462,25999.0,25998.0,0.12534444]
[1693553496018,0.53050555,25999.0,25998.0,0.12534444]
[1693553497432,0.58519462,25999.0,25998.0,0.12534444]
[1693553498530,0.53050555,25999.0,25998.0,0.12534444]
[1693553499230,0.47395791,25999.0,25998.0,0.12534444]
[1693553499427,0.47395791,25999.0,25998.0,0.18189282]
[1693553501336,0.58519462,25999.0,25998.0,0.12534444]
[1693553501731,0.53050555,25999.0,25998.0,0.12534444]
[1693553501933,0.47395791,25999.0,25998.0,0.18189282]
[1693553502639,0.58519462,25999.0,25998.0,0.12534444]
[1693553502836,0.53050555,25999.0,25998.0,0.12534444]
[1693553503137,0.58519462,25999.0,25998.0,0.12534444]
[1693553503529,0.47395791,25999.0,25998.0,0.18189282]
[1693553503735,0.47395791,25999.0,25998.0,0.08654838]
[1693553504237,0.47395791,25999.0,25998.0,0.06654838]
[1693553504438,0.47395791,25999.0,25998.0,0.08654838]
[1693553506933,0.47395791,25999.0,25998.0,0.50234838]
[1693553508340,0.44296149,25999.0,25998.0,0.50234838]
[1693553511643,0.44296149,25999.0,25998.0,0.61772324]
[1693553512241,0.44296149,25999.0,25998.0,0.59772324]
[1693553519447,0.44296149,25999.0,25998.0,0.48234838]
[1693553522746,0.44296149,25999.0,25998.0,0.59771093]
[1693553522947,0.44296149,25999.0,25998.0,0.48234838]
[1693553523135,0.44296149,25999.0,25998.0,0.59771092]
[1693553524048,0.49950913,25999.0,25998.0,0.54116254]
[1693553524249,0.49950913,25999.0,25998.0,0.59771092]
[1693553524449,0.44296149,25999.0,25998.0,0.59771092]
[1693553529240,0.02716149,25999.0,25998.0,0.59771092]
[1693553533047,0.02716149,25999.0,25998.0,0.59772046]
[1693553535254,0.50335913,25999.0,25998.0,0.12537208]
[1693553535452,0.52335913,25999.0,25998.0,0.12537208]
[1693553535856,0.5780482,25999.0,25998.0,0.12537208]
[1693553536357,0.52335913,25999.0,25998.0,0.12537208]
[1693553536552,0.46681149,25999.0,25998.0,0.12537208]
[1693553538158,0.52335913,25999.0,25998.0,0.12537208]
[1693553538458,0.5780482,25999.0,25998.0,0.12537208]
[1693553538650,0.52335913,25999.0,25998.0,0.12537208]
[1693553538958,0.5780482,25999.0,25998.0,0.12537208]
[1693553539160,0.5580482,25999.0,25998.0,0.12537208]
[1693553539458,0.46681149,25999.0,25998.0,0.18192046]
[1693553541058,0.44681149,25999.0,25998.0,0.18192046]
[1693553545457,0.44681149,25999.0,25998.0,0.12537208]
[1693553546363,0.50335913,25999.0,25998.0,0.12537208]
[1693553547463,0.44681149,25999.0,25998.0,0.06654838]
[1693553550366,0.44296149,25999.0,25998.0,0.06654838]
[1693553550961,0.49765056,25999.0,25998.0,0.06654838]
[1693553551163,0.5541982,25999.0,25998.0,0.01]
[1693553552362,0.5541982,25999.0,25998.0,0.06654838]
[1693553552663,0.49765056,25999.0,25998.0,0.06654838]
[1693553553464,0.44296149,25999.0,25998.0,0.06654838]
[1693553557368,0.49765056,25999.0,25998.0,0.06654838]
[1693553558072,0.5541982,25999.0,25998.0,0.01]
[1693553559164,0.5541982,25999.0,25998.0,0.06654838]
[1693553560672,0.49950913,25999.0,25998.0,0.06654838]
[1693553561168,0.44296149,25999.0,25998.0,0.06654838]
[1693553563375,0.5541982,25999.0,25998.0,0.01]
[1693553563576,0.5580482,25999.0,25998.0,0.12542907]
[1693553566573,0.50335913,25999.0,25998.0,0.12542907]
[1693553566874,0.5580482,25999.0,25998.0,0.12542907]
[1693553569574,0.50150056,25999.0,25998.0,0.18197745]
[1693553569977,0.5580482,25999.0,25998.0,0.12542907]
[1693553577480,0.7115482,25999.0,25998.0,0.12542907]
[1693553579481,0.65500056,25999.0,25998.0,0.12542907]
[1693553579778,0.7115482,25999.0,25998.0,0.12542907]
[1693553589589,0.65685913,25999.0,25998.0,0.12542907]
[1693553589789,0.65685913,25999.0,25998.0,0.28542907]
[1693553589990,0.7115482,25999.0,25998.0,0.28542907]
[1693553596994,0.59646149,25999.0,25998.0,0.28542907]
[1693553597495,0.44296149,25999.0,25998.0,0.34197745]
[1693553598494,0.49765056,25999.0,25998.0,0.34197745]
[1693553598794,0.49765056,25999.0,25998.0,0.28542907]
[1693553598985,0.5541982,25999.0,25998.0,0.28542907]
[1693553600396,0.44296149,25999.0,25998.0,0.28542907]
[1693553600600,0.5541982,25999.0,25998.0,0.28542907]
[1693553600892,0.49950913,25999.0,25998.0,0.28542907]
[1693553601093,0.5541982,25999.0,25998.0,0.28542907]
[1693553601296,0.49950913,25999.0,25998.0,0.28542907]
[1693553603697,0.5541982,25999.0,25998.0,0.28542907]
[1693553605790,0.49950913,25999.0,25998.0,0.28542907]
[1693553606392,0.5541982,25999.0,25998.0,0.28542907]
[1693553606697,0.44296149,25999.0,25998.0,0.17]
[1693553606996,0.49950913,25999.0,25998.0,0.17]
[1693553608699,0.5541982,25999.0,25998.0,0.17]
[1693553608899,0.44296149,25999.0,25998.0,0.17]
[1693553609101,0.44296149,25999.0,25998.0,0.19]
[1693553609492,0.44296149,25999.0,25998.0,0.24654838]
[1693553609691,0.44296149,25999.0,25998.0,0.22654838]
[1693553614900,0.44296149,25999.0,25998.0,0.63496217]
[1693553617001,0.02716149,25999.0,25998.0,1.05076217]
[1693553617305,0.02716149,25999.0,25998.0,0.79619339]
[1693553620104,0.02716149,25999.0,25998.0,0.64234838]
[1693553626314,0.02716149,25999.0,25998.0,0.79619339]
[1693553631132,0.02716149,25999.0,25998.0,0.64234838]
[1693553635130,0.02716149,25999.0,25998.0,0.79617283]
[1693553635723,0.02716149,25999.0,25998.0,0.64234838]
[1693553636129,0.02716149,25999.0,25998.0,0.79617283]
[1693553642134,0.02716149,25999.0,25998.0,1.05073907]
[1693553642425,0.02716149,25999.0,25998.0,0.79617283]
[1693553642632,0.02716149,25999.0,25998.0,1.05073908]
[1693553642832,0.02716149,25999.0,25998.0,0.64234838]
[1693553645133,0.02716149,25999.0,25998.0,0.79617283]
[1693553647738,0.02716149,25999.0,25998.0,1.05074122]
[1693553647927,0.02716149,25999.0,25998.0,0.79617283]
[1693553648128,0.02716149,25999.0,25998.0,1.05074125]
[1693553650342,0.02716149,25999.0,25998.0,1.35074125]
[1693553650537,0.02716149,25999.0,25998.0,1.1969168]
[1693553650727,0.00057695,26001.0,25998.0,1.40919736]
[1693553651040,0.19192638,26006.0,26003.0,0.3]
[1693553651335,0.1579,26007.0,26005.0,0.4158]
[1693553651539,0.00385,26009.0,26006.0,0.53116673]
[1693553651738,0.1579,26008.0,26006.0,0.11536673]
[1693553651930,0.1579,26008.0,26007.0,0.61118763]
[1693553652230,0.1579,26008.0,26007.0,0.72655436]
[1693553652630,0.1579,26008.0,26007.0,0.61118763]
[1693553654141,0.1579,26008.0,26007.0,0.68800767]
[1693553654338,0.1889,26008.0,26007.0,0.69100767]
[1693553654841,0.1629,26008.0,26007.0,0.68898375]
[1693553655242,0.1669,26008.0,26007.0,0.68998375]
[1693553657645,0.1669,26008.0,26007.0,0.61318763]
[1693553663548,0.1669,26008.0,26007.0,0.64414869]
[1693553670452,0.1669,26008.0,26007.0,0.72094481]
[1693553670957,0.1669,26008.0,26007.0,0.55494481]
[1693553671453,0.1669,26008.0,26007.0,0.49814869]
[1693553671754,0.1551,26010.0,26008.0,0.02938763]
[1693553671947,0.1551,26010.0,26009.0,0.4158]
[1693553672255,0.18548034,26010.0,26009.0,0.59578763]
[1693553672557,0.18548034,26010.0,26009.0,0.61578763]
[1693553673057,0.21548034,26010.0,26009.0,0.61878763]
[1693553673556,0.24548034,26010.0,26009.0,0.62178763]
[1693553675257,0.24548034,26010.0,26009.0,0.69843995]
[1693553676349,0.24548034,26010.0,26009.0,0.67843995]
[1693553676549,0.24931034,26010.0,26009.0,0.67843995]
[1693553676750,0.21893,26010.0,26009.0,0.67843995]
[1693553677757,0.21893,26010.0,26009.0,0.60178763]
[1693553678657,0.2151,26010.0,26009.0,0.60178763]
[1693553687761,0.2151,26010.0,26009.0,0.67843995]
[1693553690261,0.2151,26010.0,26009.0,0.60178763]
[1693553690763,0.06,26010.0,26009.0,0.60178763]
[1693553693573,0.06,26010.0,26009.0,0.71715436]
[1693553694076,0.06,26010.0,26009.0,0.60178763]
[1693553694269,0.06,26010.0,26009.0,0.71715436]
[1693553695764,0.06,26010.0,26009.0,0.60178763]
[1693553699072,0.06,26010.0,26009.0,0.71701328]
[1693553699460,0.06,26010.0,26009.0,0.60178763]
[1693553704375,0.03064997,26012.0,26009.0,1.30988112]
[1693553704376,0.1573,26012.0,26009.0,1.30988112]
[1693553704672,0.0584552,26017.0,26012.0,0.4158]
[1693553704868,0.1629,26016.0,26014.0,0.07679981]
[1693553705069,0.02,26016.0,26015.0,0.44518763]
[1693553705878,0.1629,26017.0,26015.0,0.44518763]
[1693553706066,0.1829,26017.0,26016.0,0.4158]
[1693553706479,0.1829,26017.0,26016.0,0.44518763]
[1693553707679,0.2189,26017.0,26016.0,0.44818763]
[1693553709179,0.2559,26017.0,26016.0,0.45118763]
[1693553710373,0.31244838,26017.0,26016.0,0.4218]
[1693553710776,0.72824838,26017.0,26016.0,0.006]
[1693553715180,0.78293745,26017.0,26016.0,0.006]
[1693553716588,0.72824838,26017.0,26016.0,0.006]
[1693553721488,0.6517,26017.0,26016.0,0.006]
[1693553723090,0.70824838,26017.0,26016.0,0.006]
[1693553724389,0.6517,26017.0,26016.0,0.03538763]
[1693553724989,0.2359,26017.0,26016.0,0.45118763]
[1693553728794,0.29244838,26017.0,26016.0,0.4218]
[1693553729093,0.2359,26017.0,26016.0,0.4218]
[1693553729486,0.2359,26017.0,26016.0,0.45118763]
[1693553733888,0.2359,26017.0,26016.0,0.45502763]
[1693553734295,0.29244838,26017.0,26016.0,0.42564]
[1693553735198,0.2359,26017.0,26016.0,0.45502763]
[1693553736199,0.29244838,26017.0,26016.0,0.45502763]
[1693553736600,0.29244838,26017.0,26016.0,0.42564]
[1693553737996,0.29244838,26017.0,26016.0,0.58504]
[1693553738300,0.2359,26017.0,26016.0,0.58504]
[1693553738500,0.2359,26017.0,26016.0,0.61442763]
[1693553739701,0.2359,26017.0,26016.0,0.58504]
[1693553741794,0.2359,26017.0,26016.0,0.61442763]
[1693553743094,0.2359,26017.0,26016.0,0.61058763]
[1693553749908,0.2359,26017.0,26016.0,0.68732992]
[1693553750811,0.42769151,26017.0,26016.0,0.68732992]
[1693553753309,0.26479151,26017.0,26016.0,0.68732992]
[1693553753511,0.073,26017.0,26016.0,0.68732992]
[1693553754511,0.26479151,26017.0,26016.0,0.68732992]
[1693553759710,0.073,26017.0,26016.0,0.68732992]
[1693553761211,0.073,26017.0,26016.0,0.61058763]
[1693553761715,0.073,26017.0,26016.0,0.63058763]
[1693553762321,0.073,26017.0,26016.0,0.61058763]
[1693553769126,0.073,26017.0,26016.0,0.61442763]
[1693553772219,0.073,26017.0,26016.0,0.74976568]
[1693553772411,0.073,26017.0,26016.0,0.63442763]
[1693553772811,0.073,26017.0,26016.0,0.61442763]
[1693553773111,0.073,26017.0,26016.0,0.72967219]
[1693553773617,0.037,26017.0,26016.0,0.72767219]
[1693553773812,0.00057656,26019.0,26016.0,0.72767219]
[1693553773813,0.00057656,26019.0,26017.0,0.00384]
[1693553774015,0.00057656,26019.0,26018.0,0.52200662]
[1693553775421,0.00757656,26019.0,26018.0,0.52400662]
[1693553775923,0.03157656,26019.0,26018.0,0.52600662]
[1693553776514,0.0622024,26019.0,26018.0,0.52600662]
[1693553777821,0.0622024,26019.0,26018.0,0.44918763]
[1693553778022,0.0622024,26019.0,26018.0,0.61138763]
[1693553790635,0.0622024,26019.0,26018.0,0.64154417]
[1693553793941,0.0622024,26019.0,26018.0,0.61138763]
[1693553802154,0.0622024,26019.0,26018.0,0.68820662]
[1693553802450,0.0622024,26019.0,26018.0,0.61138763]
[1693553802649,0.0622024,26019.0,26018.0,0.68820662]
[1693553805649,0.03157656,26019.0,26018.0,0.68820662]
[1693553812861,0.03157656,26019.0,26018.0,0.61138763]
[1693553813361,0.03157656,26019.0,26018.0,0.68815589]
[1693553813750,0.03157656,26019.0,26018.0,0.61138763]
[1693553825666,0.03157656,26019.0,26018.0,0.72663219]
[1693553829073,0.03157656,26019.0,26018.0,0.61138763]
[1693553829879,0.03157656,26019.0,26018.0,0.72663219]
[1693553851305,0.00257656,26019.0,26018.0,0.72263219]
[1693553851603,0.01057656,26019.0,26018.0,0.72263219]
[1693553875929,0.01057656,26019.0,26018.0,0.75275683]
[1693553876723,0.01057656,26019.0,26018.0,0.72263219]
[1693553876930,0.09095494,26019.0,26018.0,0.53104456]
[1693553877620,0.14564401,26019.0,26018.0,0.53104456]
[1693553878629,0.03440656,26019.0,26018.0,0.53104456]
[1693553879029,0.03440656,26019.0,26018.0,0.56043219]
[1693553879731,0.08909563,26019.0,26018.0,0.56037227]
[1693553879923,0.03440656,26019.0,26018.0,0.56037227]
[1693553883733,0.08909563,26019.0,26018.0,0.53098464]
[1693553884033,0.03440656,26019.0,26018.0,0.53098464]
[1693553886234,0.08909563,26019.0,26018.0,0.53098464]
[1693553886534,0.09095494,26019.0,26018.0,0.53098464]
[1693553888438,0.07095494,26019.0,26018.0,0.53098464]
[1693553888635,0.01440656,26019.0,26018.0,0.53098464]
[1693553889141,0.03440656,26019.0,26018.0,0.53098464]
[1693553889435,0.03440656,26019.0,26018.0,0.56037227]
[1693553889638,0.01440656,26019.0,26018.0,0.56037227]
[1693553891039,0.06909563,26019.0,26018.0,0.56037227]
[1693553891234,0.01440656,26019.0,26018.0,0.56037227]
[1693553891942,0.01440656,26019.0,26018.0,0.72487227]
[1693553901657,0.01057656,26019.0,26018.0,0.72487227]
[1693553907250,0.01057656,26019.0,26018.0,0.56037227]
[1693553907653,0.01057656,26019.0,26018.0,0.71747227]
[1693553910347,0.01057656,26019.0,26018.0,0.68808464]
[1693553911549,0.01057656,26019.0,26018.0,0.71747227]
[1693553922665,0.06712494,26019.0,26018.0,0.68808464]
[1693553922960,0.12181401,26019.0,26018.0,0.68808464]
[1693553923257,0.12564401,26019.0,26018.0,0.4158]
[1693553923462,0.00383,26018.0,26017.0,0.49260888]
[1693553923662,0.74312978,26018.0,26017.0,0.49260888]
[1693553923861,0.74312978,26018.0,26017.0,0.4158]
[1693553924457,0.74312978,26018.0,26017.0,0.4258]
[1693553924758,0.74312978,26018.0,26017.0,0.4298]
[1693553926666,0.76512978,26018.0,26017.0,0.4268]
[1693553926859,0.57286745,26018.0,26017.0,0.4268]
[1693553927364,0.57986745,26018.0,26017.0,0.4168]
[1693553931653,0.61008604,26018.0,26017.0,0.4168]
[1693553932664,0.59008604,26018.0,26017.0,0.4168]
[1693553932968,0.61008604,26018.0,26017.0,0.4168]
[1693553935568,0.59008604,26018.0,26017.0,0.4168]
[1693553937073,0.17428604,26018.0,26017.0,0.4168]
[1693553938173,0.11959697,26018.0,26017.0,0.4168]
[1693553938476,0.17428604,26018.0,26017.0,0.4168]
[1693553939672,0.11959697,26018.0,26017.0,0.4168]
[1693553939883,0.17428604,26018.0,26017.0,0.4168]
[1693553940269,0.11959697,26018.0,26017.0,0.4168]
[1693553940471,0.11959697,26018.0,26017.0,0.39606498]
[1693553941681,0.17428604,26018.0,26017.0,0.39606498]
[1693553941879,0.11959697,26018.0,26017.0,0.39606498]
[1693553942870,0.17428604,26018.0,26017.0,0.39606498]
[1693553951677,0.17428604,26018.0,26017.0,0.39990498]
[1693553954677,0.36621012,26018.0,26017.0,0.39990498]
[1693553955181,0.17428604,26018.0,26017.0,0.39990498]
[1693553955887,0.36621012,26018.0,26017.0,0.39990498]
[1693553957791,0.36621012,26018.0,26014.0,0.1582]
[1693553957792,0.78201012,26018.0,26015.0,0.4158]
[1693553957989,0.19192408,26016.0,26015.0,0.37581498]
[1693553958293,1.0158,26016.0,26014.0,0.1662]
[1693553958495,0.01898,26014.0,26013.0,0.41637658]
[1693553958684,0.01898,26014.0,26013.0,0.39739658]
[1693553958685,0.4158,26014.0,26013.0,0.39739658]
[1693553958987,0.52703745,26014.0,26013.0,0.39739658]
[1693553959690,0.52703745,26014.0,26013.0,0.43339658]
[1693553960483,0.52903745,26014.0,26013.0,0.46239658]
[1693553971895,0.58780109,26014.0,26013.0,0.46239658]
[1693553973001,0.38781555,26014.0,26013.0,0.065]
[1693553973302,0.61163109,26014.0,26013.0,0.03405113]
[1693553973697,0.61163109,26014.0,26013.0,0.00505113]
[1693553973902,0.91163109,26014.0,26013.0,0.00505113]
[1693553974206,1.8,26012.0,26010.0,0.4158]
[1693553974407,0.4158,26011.0,26010.0,0.40186113]
[1693553974606,0.52703745,26011.0,26010.0,0.40186113]
[1693553975405,0.52703745,26011.0,26010.0,0.43886113]
[1693553976198,0.53003745,26011.0,26010.0,0.47586113]
[1693553976801,0.53003745,26011.0,26010.0,0.43886113]
[1693553977105,0.53003745,26011.0,26010.0,0.074]
[1693553977106,0.53303745,26011.0,26010.0,0.074]
[1693553980717,0.53303745,26011.0,26010.0,0.05502]
[1693553989715,0.6218637,26011.0,26010.0,0.05502]
[1693554001439,0.6418637,26011.0,26010.0,0.05502]
[1693554002139,0.83369511,26011.0,26010.0,0.05175072]
[1693554002441,0.6418637,26011.0,26010.0,0.05175072]
[1693554003539,2.85831186,26011.0,26010.0,0.05175072]
[1693554003843,0.60383,26009.0,26008.0,0.23116637]
[1693554004027,1.0158,26009.0,26007.0,0.14967719]
[1693554004226,1.0158,26009.0,26006.0,0.46211837]
[1693554004227,0.01898,26007.0,26006.0,0.46211837]
[1693554004427,2.32768561,26007.0,26006.0,0.366472]
[1693554005433,0.11123745,26007.0,26006.0,0.366472]